[Event "Early-Titled-Tuesday-Blitz-January-16-2024"]
[Site "Chess.com"]
[Date "2024.01.16"]
[Round "4"]
[White "Nasrin_Babayeva"]
[Black "toninhojit"]
[Result "1-0"]
[WhiteElo "1861"]
[BlackElo "2393"]
[TimeControl "180+1"]
[EndTime "8:40:00 PST"]
[Termination "Nasrin_Babayeva won by resignation"]

1. e4 {[%clk 0:03:00.9]} 1... g6 {[%clk 0:03:00.4]} 2. d3 {[%clk 0:02:58]} 2...
Bg7 {[%clk 0:03:00.6]} 3. Nd2 {[%clk 0:02:58.6]} 3... c5 {[%clk 0:03:01]} 4. c3
{[%clk 0:02:57]} 4... Nc6 {[%clk 0:03:01.5]} 5. f4 {[%clk 0:02:57.1]} 5... d6
{[%clk 0:03:01.9]} 6. Be2 {[%clk 0:02:56.7]} 6... e6 {[%clk 0:03:02.6]} 7. Ngf3
{[%clk 0:02:55.4]} 7... Nge7 {[%clk 0:03:02.7]} 8. O-O {[%clk 0:02:55.4]} 8...
O-O {[%clk 0:03:03.4]} 9. Qe1 {[%clk 0:02:51.3]} 9... Rb8 {[%clk 0:03:02.4]} 10.
Qh4 {[%clk 0:02:49.9]} 10... b5 {[%clk 0:03:02.8]} 11. a3 {[%clk 0:02:48.9]}
11... a5 {[%clk 0:03:02.4]} 12. Rb1 {[%clk 0:02:34.3]} 12... b4 {[%clk 0:03:02]}
13. axb4 {[%clk 0:02:34.2]} 13... axb4 {[%clk 0:03:02.9]} 14. Ng5 {[%clk
0:02:25.8]} 14... h6 {[%clk 0:03:01.7]} 15. Ngf3 {[%clk 0:02:25]} 15... bxc3
{[%clk 0:02:53]} 16. bxc3 {[%clk 0:02:25.9]} 16... Rxb1 {[%clk 0:02:53]} 17.
Nxb1 {[%clk 0:02:25.3]} 17... Ba6 {[%clk 0:02:53.1]} 18. Be3 {[%clk 0:02:21.1]}
18... f5 {[%clk 0:02:46.5]} 19. Re1 {[%clk 0:02:14.1]} 19... fxe4 {[%clk
0:02:38]} 20. dxe4 {[%clk 0:02:15]} 20... Bxe2 {[%clk 0:02:38.3]} 21. Rxe2
{[%clk 0:02:15.9]} 21... Qa5 {[%clk 0:02:28.2]} 22. f5 {[%clk 0:02:14.9]} 22...
Qb5 {[%clk 0:01:45.8]} 23. Re1 {[%clk 0:02:07.9]} 23... exf5 {[%clk 0:01:17.9]}
24. Bxh6 {[%clk 0:02:04.8]} 24... Bxh6 {[%clk 0:01:11.1]} 25. Qxh6 {[%clk
0:02:04]} 25... Rf7 {[%clk 0:01:11.7]} 26. exf5 {[%clk 0:01:54.8]} 26... gxf5
{[%clk 0:00:41.4]} 27. Ng5 {[%clk 0:01:47.9]} 27... Rg7 {[%clk 0:00:34.9]} 28.
Ne6 {[%clk 0:01:41.9]} 28... Rg6 {[%clk 0:00:30.8]} 29. Qf8+ {[%clk 0:01:40]}
29... Kh7 {[%clk 0:00:31.4]} 30. h4 {[%clk 0:01:23.1]} 30... Qc4 {[%clk
0:00:25.5]} 31. Ng5+ {[%clk 0:01:18.8]} 31... Rxg5 {[%clk 0:00:23.2]} 32. hxg5
{[%clk 0:01:19.7]} 32... Ng6 {[%clk 0:00:21.9]} 33. Qh6+ {[%clk 0:01:16.1]} 1-0

[Event "Early-Titled-Tuesday-Blitz-January-16-2024"]
[Site "Chess.com"]
[Date "2024.01.16"]
[Round "4"]
[White "otrov-11"]
[Black "margarita_2703"]
[Result "1-0"]
[WhiteElo "2448"]
[BlackElo "2288"]
[TimeControl "180+1"]
[EndTime "8:40:04 PST"]
[Termination "otrov-11 won by resignation"]

1. d4 {[%clk 0:02:59.7]} 1... d5 {[%clk 0:03:00]} 2. c4 {[%clk 0:02:59.7]} 2...
e6 {[%clk 0:03:00.1]} 3. g3 {[%clk 0:03:00]} 3... Nf6 {[%clk 0:02:56.5]} 4. Nf3
{[%clk 0:03:00.5]} 4... Be7 {[%clk 0:02:56.7]} 5. Bg2 {[%clk 0:02:28.3]} 5...
O-O {[%clk 0:02:54.3]} 6. O-O {[%clk 0:02:28.7]} 6... dxc4 {[%clk 0:02:43.7]} 7.
Qc2 {[%clk 0:02:28.4]} 7... a6 {[%clk 0:02:26.1]} 8. a4 {[%clk 0:02:26.2]} 8...
Bd7 {[%clk 0:02:24.6]} 9. Qxc4 {[%clk 0:02:26]} 9... Bc6 {[%clk 0:02:23.7]} 10.
Bg5 {[%clk 0:02:26.3]} 10... Nbd7 {[%clk 0:02:22.7]} 11. Nc3 {[%clk 0:02:25.3]}
11... Bd5 {[%clk 0:02:20.5]} 12. Qd3 {[%clk 0:02:21.4]} 12... h6 {[%clk
0:02:20.2]} 13. Bxf6 {[%clk 0:02:21]} 13... Nxf6 {[%clk 0:02:19]} 14. Rfd1
{[%clk 0:02:15.9]} 14... b6 {[%clk 0:02:14.2]} 15. Ne5 {[%clk 0:02:01]} 15...
Bxg2 {[%clk 0:02:09.9]} 16. Kxg2 {[%clk 0:02:01.9]} 16... c5 {[%clk 0:02:02.3]}
17. dxc5 {[%clk 0:01:57.4]} 17... Bxc5 {[%clk 0:01:26.3]} 18. Qf3 {[%clk
0:01:41.2]} 18... Qc7 {[%clk 0:01:22]} 19. Nd3 {[%clk 0:01:36.9]} 19... Rad8
{[%clk 0:01:20.5]} 20. Rac1 {[%clk 0:01:35.2]} 20... Qb8 {[%clk 0:00:53.3]} 21.
e3 {[%clk 0:01:19.1]} 21... Rc8 {[%clk 0:00:13.6]} 22. Ne4 {[%clk 0:01:17]}
22... Nxe4 {[%clk 0:00:13.5]} 23. Qxe4 {[%clk 0:01:17.9]} 23... Be7 {[%clk
0:00:14]} 24. Ne5 {[%clk 0:01:16.5]} 24... Rxc1 {[%clk 0:00:13.8]} 25. Rxc1
{[%clk 0:01:17.4]} 25... Rc8 {[%clk 0:00:14.3]} 26. Nc6 {[%clk 0:01:16.7]} 26...
Qa8 {[%clk 0:00:05.8]} 27. Nxe7+ {[%clk 0:01:15.7]} 27... Kf8 {[%clk 0:00:05.9]}
28. Rxc8+ {[%clk 0:01:15.1]} 1-0

[Event "Early-Titled-Tuesday-Blitz-January-16-2024"]
[Site "Chess.com"]
[Date "2024.01.16"]
[Round "4"]
[White "NewYearGirl"]
[Black "Kildepiotr"]
[Result "0-1"]
[WhiteElo "2408"]
[BlackElo "2664"]
[TimeControl "180+1"]
[EndTime "8:40:06 PST"]
[Termination "Kildepiotr won by resignation"]

1. e4 {[%clk 0:03:00.9]} 1... g6 {[%clk 0:02:57.5]} 2. d4 {[%clk 0:03:00.6]}
2... Bg7 {[%clk 0:02:58.1]} 3. Nc3 {[%clk 0:03:01.1]} 3... c6 {[%clk 0:02:58.2]}
4. f4 {[%clk 0:02:58]} 4... d5 {[%clk 0:02:58.1]} 5. e5 {[%clk 0:02:58.7]} 5...
Nh6 {[%clk 0:02:58.7]} 6. h3 {[%clk 0:02:59]} 6... Nf5 {[%clk 0:02:58.5]} 7. g4
{[%clk 0:02:37.6]} 7... Ng3 {[%clk 0:02:58.1]} 8. Rh2 {[%clk 0:02:38]} 8... h5
{[%clk 0:02:58.4]} 9. g5 {[%clk 0:02:09.5]} 9... Bf5 {[%clk 0:02:44.8]} 10. Bd3
{[%clk 0:02:01.3]} 10... Qb6 {[%clk 0:02:35.5]} 11. Bxf5 {[%clk 0:01:53.2]}
11... Nxf5 {[%clk 0:02:35.1]} 12. Nge2 {[%clk 0:01:53.6]} 12... h4 {[%clk
0:02:33.9]} 13. Qd3 {[%clk 0:01:44]} 13... e6 {[%clk 0:02:33.4]} 14. b3 {[%clk
0:01:32.8]} 14... Bf8 {[%clk 0:02:33]} 15. a4 {[%clk 0:01:29.5]} 15... Bb4
{[%clk 0:02:30.9]} 16. Bd2 {[%clk 0:01:22.5]} 16... a6 {[%clk 0:02:26.1]} 17.
Kd1 {[%clk 0:01:05.9]} 17... c5 {[%clk 0:02:23.2]} 18. a5 {[%clk 0:01:03]} 18...
Qc7 {[%clk 0:02:04.3]} 19. Ra4 {[%clk 0:00:46.8]} 19... Nc6 {[%clk 0:02:01.6]}
20. dxc5 {[%clk 0:00:28.7]} 20... Bxc5 {[%clk 0:02:01.4]} 21. Na2 {[%clk
0:00:21.8]} 21... O-O {[%clk 0:01:58.6]} 22. b4 {[%clk 0:00:21.6]} 22... Ba7
{[%clk 0:01:56.4]} 23. c3 {[%clk 0:00:21]} 23... Rac8 {[%clk 0:01:39.5]} 24. Be1
{[%clk 0:00:21]} 24... d4 {[%clk 0:01:26.7]} 25. c4 {[%clk 0:00:19.1]} 25...
Ne3+ {[%clk 0:01:25]} 26. Kd2 {[%clk 0:00:19.3]} 26... Nf1+ {[%clk 0:01:24.8]}
27. Kc2 {[%clk 0:00:19.4]} 27... Nxh2 {[%clk 0:01:25.1]} 28. Bxh4 {[%clk
0:00:19.7]} 28... Ne7 {[%clk 0:01:19.1]} 29. c5 {[%clk 0:00:20]} 29... Nf5
{[%clk 0:01:16.3]} 30. Bf2 {[%clk 0:00:20]} 30... Nf1 {[%clk 0:01:15.4]} 31. Ng3
{[%clk 0:00:18.9]} 31... N1xg3 {[%clk 0:01:15.3]} 32. Bxg3 {[%clk 0:00:19]}
32... Bxc5 {[%clk 0:01:12.5]} 33. bxc5 {[%clk 0:00:18.6]} 33... Qxc5+ {[%clk
0:01:13.4]} 34. Rc4 {[%clk 0:00:19.1]} 34... Qxc4+ {[%clk 0:01:13.7]} 0-1

[Event "Early-Titled-Tuesday-Blitz-January-16-2024"]
[Site "Chess.com"]
[Date "2024.01.16"]
[Round "4"]
[White "GMWSO"]
[Black "Yaacovn"]
[Result "1-0"]
[WhiteElo "3091"]
[BlackElo "2886"]
[TimeControl "180+1"]
[EndTime "8:40:07 PST"]
[Termination "GMWSO won by resignation"]

1. d4 {[%clk 0:02:44.4]} 1... Nf6 {[%clk 0:02:58.3]} 2. c4 {[%clk 0:02:43.9]}
2... e5 {[%clk 0:02:55.9]} 3. dxe5 {[%clk 0:02:44.8]} 3... Ne4 {[%clk
0:02:54.4]} 4. Nd2 {[%clk 0:02:37.8]} 4... Bb4 {[%clk 0:02:51.4]} 5. a3 {[%clk
0:02:34.7]} 5... Bxd2+ {[%clk 0:02:50.2]} 6. Bxd2 {[%clk 0:02:35.6]} 6... Nc6
{[%clk 0:02:47.6]} 7. Nf3 {[%clk 0:02:31.2]} 7... Nxd2 {[%clk 0:02:45.7]} 8.
Qxd2 {[%clk 0:02:32.1]} 8... O-O {[%clk 0:02:46.2]} 9. Rd1 {[%clk 0:02:23.2]}
9... Qe7 {[%clk 0:02:44.9]} 10. Qc3 {[%clk 0:02:20.5]} 10... Re8 {[%clk
0:02:44.4]} 11. Rd5 {[%clk 0:02:20.5]} 11... b6 {[%clk 0:02:44.4]} 12. g3 {[%clk
0:02:14.1]} 12... Bb7 {[%clk 0:02:44.1]} 13. Bg2 {[%clk 0:02:14.5]} 13... d6
{[%clk 0:02:44]} 14. O-O {[%clk 0:02:01.3]} 14... Nxe5 {[%clk 0:02:35.4]} 15.
Nxe5 {[%clk 0:01:59.8]} 15... dxe5 {[%clk 0:01:51.6]} 16. Rd2 {[%clk 0:01:59]}
16... Bxg2 {[%clk 0:01:44.7]} 17. Kxg2 {[%clk 0:01:59.9]} 17... Rad8 {[%clk
0:01:43.1]} 18. Rfd1 {[%clk 0:01:59.7]} 18... f6 {[%clk 0:01:35.2]} 19. b4
{[%clk 0:01:51.6]} 19... Rd6 {[%clk 0:01:11.4]} 20. Rxd6 {[%clk 0:01:43.6]}
20... cxd6 {[%clk 0:01:10.5]} 21. Qd3 {[%clk 0:01:43.9]} 21... Rd8 {[%clk
0:01:09.1]} 22. Qd5+ {[%clk 0:01:40.7]} 22... Qf7 {[%clk 0:01:08.1]} 23. Qc6
{[%clk 0:01:34.5]} 23... Qd7 {[%clk 0:01:04.3]} 24. Qd5+ {[%clk 0:01:30]} 24...
Qf7 {[%clk 0:01:03.9]} 25. Qe4 {[%clk 0:01:24.6]} 25... f5 {[%clk 0:00:47.2]}
26. Qxe5 {[%clk 0:01:23.1]} 26... Re8 {[%clk 0:00:15]} 27. Qxd6 {[%clk
0:01:19.7]} 27... Qxc4 {[%clk 0:00:14.3]} 28. e3 {[%clk 0:01:16.2]} 28... h6
{[%clk 0:00:13]} 29. Qd5+ {[%clk 0:01:14.3]} 29... Qxd5+ {[%clk 0:00:13]} 30.
Rxd5 {[%clk 0:01:15.2]} 30... Rf8 {[%clk 0:00:12.8]} 31. h4 {[%clk 0:01:11.8]}
1-0

[Event "Early-Titled-Tuesday-Blitz-January-16-2024"]
[Site "Chess.com"]
[Date "2024.01.16"]
[Round "4"]
[White "Matrix3x3a"]
[Black "C_K_G"]
[Result "1-0"]
[WhiteElo "2439"]
[BlackElo "2042"]
[TimeControl "180+1"]
[EndTime "8:40:07 PST"]
[Termination "Matrix3x3a won on time"]

1. d4 {[%clk 0:03:00.9]} 1... d5 {[%clk 0:02:59.4]} 2. c4 {[%clk 0:03:00.8]}
2... e6 {[%clk 0:02:59.8]} 3. Nc3 {[%clk 0:02:59]} 3... Nf6 {[%clk 0:03:00.3]}
4. Bg5 {[%clk 0:02:56.5]} 4... c6 {[%clk 0:03:00.3]} 5. e3 {[%clk 0:02:55]} 5...
Nbd7 {[%clk 0:03:00.4]} 6. Nf3 {[%clk 0:02:53.9]} 6... Bd6 {[%clk 0:03:00.8]} 7.
Qc2 {[%clk 0:02:47.5]} 7... O-O {[%clk 0:02:58.2]} 8. Rc1 {[%clk 0:02:44.8]}
8... h6 {[%clk 0:02:58]} 9. Bh4 {[%clk 0:02:43.9]} 9... Re8 {[%clk 0:02:57.8]}
10. Bd3 {[%clk 0:02:41.7]} 10... dxc4 {[%clk 0:02:50.4]} 11. Bxc4 {[%clk
0:02:42.6]} 11... e5 {[%clk 0:02:48.8]} 12. dxe5 {[%clk 0:02:42.6]} 12... Nxe5
{[%clk 0:02:48.5]} 13. Nxe5 {[%clk 0:02:42.3]} 13... Bxe5 {[%clk 0:02:47.7]} 14.
Bg3 {[%clk 0:02:41.9]} 14... Qe7 {[%clk 0:02:20.4]} 15. Qb3 {[%clk 0:02:38.2]}
15... Bxc3+ {[%clk 0:02:12.9]} 16. Qxc3 {[%clk 0:02:31.7]} 16... Ne4 {[%clk
0:02:10]} 17. Qc2 {[%clk 0:02:22.4]} 17... Qb4+ {[%clk 0:02:07.6]} 18. Ke2
{[%clk 0:02:20.8]} 18... Bf5 {[%clk 0:01:54.8]} 19. Bd3 {[%clk 0:02:14.2]} 19...
Rad8 {[%clk 0:01:53.4]} 20. Rhd1 {[%clk 0:02:12.7]} 20... Nxg3+ {[%clk 0:01:36]}
21. hxg3 {[%clk 0:02:10.2]} 21... Qg4+ {[%clk 0:01:23.2]} 22. Kf1 {[%clk
0:02:08]} 22... Rxd3 {[%clk 0:01:02.1]} 23. Rxd3 {[%clk 0:02:06.7]} 23... Qh5
{[%clk 0:00:40.5]} 24. Kg1 {[%clk 0:01:44.2]} 24... Kh7 {[%clk 0:00:18]} 25. Qd1
{[%clk 0:01:37.6]} 25... Bg4 {[%clk 0:00:07.6]} 26. Qd2 {[%clk 0:01:36.6]} 26...
Bf5 {[%clk 0:00:05.9]} 27. Rd4 {[%clk 0:01:36.2]} 27... Qg6 {[%clk 0:00:04.8]}
28. Rd6 {[%clk 0:01:32.4]} 28... f6 {[%clk 0:00:03.8]} 29. b4 {[%clk 0:01:31.8]}
29... h5 {[%clk 0:00:03.3]} 30. Rd4 {[%clk 0:01:30.6]} 30... Re6 {[%clk
0:00:01.1]} 31. a4 {[%clk 0:01:27.9]} 31... Re5 {[%clk 0:00:01.3]} 32. Rc5
{[%clk 0:01:24.3]} 1-0

[Event "Early-Titled-Tuesday-Blitz-January-16-2024"]
[Site "Chess.com"]
[Date "2024.01.16"]
[Round "4"]
[White "KarolKacprzak"]
[Black "sergoy"]
[Result "0-1"]
[WhiteElo "2742"]
[BlackElo "3014"]
[TimeControl "180+1"]
[EndTime "8:40:10 PST"]
[Termination "sergoy won by resignation"]

1. d4 {[%clk 0:03:00.9]} 1... Nf6 {[%clk 0:02:59.4]} 2. c4 {[%clk 0:02:59.9]}
2... e6 {[%clk 0:03:00.1]} 3. Nf3 {[%clk 0:02:59.9]} 3... d5 {[%clk 0:03:00.4]}
4. Nc3 {[%clk 0:02:59.9]} 4... c6 {[%clk 0:03:00.7]} 5. Bg5 {[%clk 0:02:59.5]}
5... h6 {[%clk 0:03:00.2]} 6. Bxf6 {[%clk 0:02:53.7]} 6... Qxf6 {[%clk
0:03:01.1]} 7. e3 {[%clk 0:02:54.2]} 7... Nd7 {[%clk 0:03:00.9]} 8. Bd3 {[%clk
0:02:48.6]} 8... g6 {[%clk 0:03:00.9]} 9. O-O {[%clk 0:02:47.9]} 9... Bg7 {[%clk
0:03:00.4]} 10. Qe2 {[%clk 0:02:38.1]} 10... O-O {[%clk 0:02:58.5]} 11. Rfe1
{[%clk 0:02:35.9]} 11... Qe7 {[%clk 0:02:57.9]} 12. e4 {[%clk 0:02:32.6]} 12...
dxc4 {[%clk 0:02:58.2]} 13. Bxc4 {[%clk 0:02:32.7]} 13... b5 {[%clk 0:02:59.1]}
14. Bb3 {[%clk 0:02:29.6]} 14... Rb8 {[%clk 0:02:46.1]} 15. e5 {[%clk
0:02:21.1]} 15... c5 {[%clk 0:02:37.5]} 16. d5 {[%clk 0:02:18.7]} 16... c4
{[%clk 0:02:29.3]} 17. d6 {[%clk 0:02:05.2]} 17... Qd8 {[%clk 0:02:22]} 18. Bc2
{[%clk 0:02:05.8]} 18... b4 {[%clk 0:02:22.1]} 19. Na4 {[%clk 0:01:54]} 19...
Qa5 {[%clk 0:02:21]} 20. h4 {[%clk 0:01:40.4]} 20... h5 {[%clk 0:02:09.7]} 21.
b3 {[%clk 0:01:37.6]} 21... c3 {[%clk 0:02:08.6]} 22. Rad1 {[%clk 0:01:24.6]}
22... Bb7 {[%clk 0:02:02.7]} 23. Be4 {[%clk 0:01:13]} 23... Bxe4 {[%clk
0:02:02.9]} 24. Qxe4 {[%clk 0:01:13.9]} 24... Rb5 {[%clk 0:02:03.6]} 25. Qc6
{[%clk 0:01:00.1]} 25... Nxe5 {[%clk 0:01:43.3]} 26. Nxe5 {[%clk 0:00:59.6]}
26... Bxe5 {[%clk 0:01:44.2]} 27. d7 {[%clk 0:00:59.2]} 27... Bf6 {[%clk
0:01:43.1]} 28. g3 {[%clk 0:00:58.6]} 28... Rd8 {[%clk 0:01:40.8]} 29. Re4
{[%clk 0:00:49.7]} 29... Rd5 {[%clk 0:01:27.7]} 30. Rxd5 {[%clk 0:00:39.9]}
30... Qxd5 {[%clk 0:01:22.1]} 31. Qxd5 {[%clk 0:00:35.2]} 31... exd5 {[%clk
0:01:22.4]} 32. Re8+ {[%clk 0:00:36.1]} 32... Kg7 {[%clk 0:01:22.6]} 33. Nc5
{[%clk 0:00:37]} 33... c2 {[%clk 0:01:16.2]} 34. Nd3 {[%clk 0:00:33.4]} 34...
Rxd7 {[%clk 0:01:14]} 35. Rc8 {[%clk 0:00:34.2]} 35... Bc3 {[%clk 0:01:13.4]}
36. Rc5 {[%clk 0:00:21.7]} 36... Re7 {[%clk 0:01:11.5]} 37. Kf1 {[%clk 0:00:22]}
37... Re1+ {[%clk 0:01:11]} 0-1

[Event "Early-Titled-Tuesday-Blitz-January-16-2024"]
[Site "Chess.com"]
[Date "2024.01.16"]
[Round "4"]
[White "koncheto"]
[Black "cycygogne"]
[Result "1-0"]
[WhiteElo "2593"]
[BlackElo "2292"]
[TimeControl "180+1"]
[EndTime "8:40:10 PST"]
[Termination "koncheto won by resignation"]

1. e4 {[%clk 0:03:00.9]} 1... d5 {[%clk 0:03:00]} 2. exd5 {[%clk 0:03:01.2]}
2... Qxd5 {[%clk 0:03:00.9]} 3. Nf3 {[%clk 0:03:01.3]} 3... Nf6 {[%clk
0:02:59.5]} 4. d4 {[%clk 0:03:01]} 4... Bg4 {[%clk 0:02:59]} 5. Be2 {[%clk
0:03:00.4]} 5... Nc6 {[%clk 0:02:56]} 6. c4 {[%clk 0:03:00.9]} 6... Qd7 {[%clk
0:02:50.3]} 7. Be3 {[%clk 0:02:54.6]} 7... e6 {[%clk 0:02:45.9]} 8. O-O {[%clk
0:02:54]} 8... O-O-O {[%clk 0:02:40.2]} 9. Nbd2 {[%clk 0:02:54.1]} 9... Kb8
{[%clk 0:02:40.1]} 10. a3 {[%clk 0:02:52.6]} 10... g5 {[%clk 0:02:22.6]} 11.
Bxg5 {[%clk 0:02:35.8]} 11... Be7 {[%clk 0:02:22.5]} 12. Ne5 {[%clk 0:02:35.6]}
12... Nxe5 {[%clk 0:02:18.9]} 13. dxe5 {[%clk 0:02:35.2]} 13... Bxe2 {[%clk
0:02:16.9]} 14. Qxe2 {[%clk 0:02:36.1]} 14... Ne8 {[%clk 0:01:57.3]} 15. Rad1
{[%clk 0:02:30.4]} 15... Bxg5 {[%clk 0:01:55.8]} 16. Ne4 {[%clk 0:02:29.9]}
16... Qe7 {[%clk 0:01:54.6]} 17. Rxd8+ {[%clk 0:02:04.9]} 17... Qxd8 {[%clk
0:01:54.1]} 18. Rd1 {[%clk 0:02:05.5]} 18... Qe7 {[%clk 0:01:52.5]} 19. Nxg5
{[%clk 0:02:06]} 19... Qxg5 {[%clk 0:01:53]} 20. Qe3 {[%clk 0:02:06.2]} 20...
Qe7 {[%clk 0:01:49.2]} 21. Qc5 {[%clk 0:02:05.3]} 21... Nd6 {[%clk 0:01:19.4]}
22. exd6 {[%clk 0:02:02.6]} 22... cxd6 {[%clk 0:01:20.3]} 23. Rxd6 {[%clk
0:01:57.7]} 23... Rc8 {[%clk 0:01:16.8]} 24. Qe5 {[%clk 0:01:55.8]} 24... Ka8
{[%clk 0:01:15.8]} 25. b3 {[%clk 0:01:53.4]} 25... Qh4 {[%clk 0:01:06]} 26. g3
{[%clk 0:01:52.2]} 26... Qg4 {[%clk 0:01:02.6]} 27. Rd4 {[%clk 0:01:49.4]} 27...
Qf3 {[%clk 0:01:01.3]} 28. Qe3 {[%clk 0:01:43]} 28... Qc6 {[%clk 0:00:49]} 29.
h4 {[%clk 0:01:34]} 29... f6 {[%clk 0:00:46.9]} 30. Qd3 {[%clk 0:01:30.5]} 30...
e5 {[%clk 0:00:46.1]} 31. Rd8 {[%clk 0:01:29.5]} 31... f5 {[%clk 0:00:41.8]} 32.
Qd7 {[%clk 0:01:19.4]} 32... Kb8 {[%clk 0:00:38.8]} 33. Rxc8+ {[%clk 0:01:06.4]}
33... Qxc8 {[%clk 0:00:38.1]} 34. Qxc8+ {[%clk 0:00:54.1]} 34... Kxc8 {[%clk
0:00:39]} 35. f3 {[%clk 0:00:54.4]} 35... Kd7 {[%clk 0:00:38.5]} 36. g4 {[%clk
0:00:54.2]} 36... Kc6 {[%clk 0:00:39]} 37. gxf5 {[%clk 0:00:52.9]} 1-0

[Event "Early-Titled-Tuesday-Blitz-January-16-2024"]
[Site "Chess.com"]
[Date "2024.01.16"]
[Round "4"]
[White "biostatistician"]
[Black "GalaxyRoman"]
[Result "0-1"]
[WhiteElo "2610"]
[BlackElo "2875"]
[TimeControl "180+1"]
[EndTime "8:40:11 PST"]
[Termination "GalaxyRoman won by checkmate"]

1. d4 {[%clk 0:03:00.3]} 1... Nf6 {[%clk 0:02:59.7]} 2. Nf3 {[%clk 0:03:00.3]}
2... b6 {[%clk 0:02:58.7]} 3. c4 {[%clk 0:02:59.3]} 3... e6 {[%clk 0:02:58.6]}
4. Nc3 {[%clk 0:02:59.2]} 4... Bb4 {[%clk 0:02:57.6]} 5. Qc2 {[%clk 0:02:59.3]}
5... Bb7 {[%clk 0:02:57.3]} 6. a3 {[%clk 0:03:00.2]} 6... Bxc3+ {[%clk
0:02:56.7]} 7. Qxc3 {[%clk 0:03:01.1]} 7... O-O {[%clk 0:02:57]} 8. g3 {[%clk
0:03:01.4]} 8... Ne4 {[%clk 0:02:56.6]} 9. Qc2 {[%clk 0:03:01.4]} 9... f5 {[%clk
0:02:53.7]} 10. Bg2 {[%clk 0:03:01.8]} 10... Qe7 {[%clk 0:02:40.8]} 11. O-O
{[%clk 0:03:01.5]} 11... c5 {[%clk 0:02:37.3]} 12. Rd1 {[%clk 0:02:58.4]} 12...
Nc6 {[%clk 0:02:34.5]} 13. d5 {[%clk 0:02:54.7]} 13... exd5 {[%clk 0:02:32.2]}
14. cxd5 {[%clk 0:02:53.5]} 14... Ne5 {[%clk 0:02:17.4]} 15. Bf4 {[%clk
0:02:21.9]} 15... Ng6 {[%clk 0:02:12.8]} 16. e3 {[%clk 0:02:06.9]} 16... Rae8
{[%clk 0:02:06.1]} 17. b4 {[%clk 0:02:01.1]} 17... d6 {[%clk 0:01:57.8]} 18.
bxc5 {[%clk 0:02:00.1]} 18... dxc5 {[%clk 0:01:58.7]} 19. d6 {[%clk 0:01:50.8]}
19... Qd7 {[%clk 0:01:56.9]} 20. Ng5 {[%clk 0:01:25.1]} 20... Nxg5 {[%clk
0:01:49.4]} 21. Bxg5 {[%clk 0:01:26]} 21... Bxg2 {[%clk 0:01:47.6]} 22. Kxg2
{[%clk 0:01:26.9]} 22... Re6 {[%clk 0:01:44.7]} 23. Qc4 {[%clk 0:01:08.4]} 23...
Kh8 {[%clk 0:01:42.1]} 24. Qd5 {[%clk 0:01:01.4]} 24... h6 {[%clk 0:01:27.5]}
25. Bf4 {[%clk 0:01:00.6]} 25... Rff6 {[%clk 0:01:25.6]} 26. Qa8+ {[%clk
0:00:34.9]} 26... Kh7 {[%clk 0:01:24.5]} 27. Rac1 {[%clk 0:00:22.9]} 27... Nxf4+
{[%clk 0:01:23.7]} 28. exf4 {[%clk 0:00:23.8]} 28... Rxd6 {[%clk 0:01:23.4]} 29.
Rxd6 {[%clk 0:00:22.4]} 29... Rxd6 {[%clk 0:01:24.3]} 30. f3 {[%clk 0:00:20]}
30... Rd2+ {[%clk 0:01:23.6]} 31. Kh3 {[%clk 0:00:19.9]} 31... Qf7 {[%clk
0:01:22.9]} 32. g4 {[%clk 0:00:15.9]} 32... Qa2 {[%clk 0:01:22.3]} 33. Rh1
{[%clk 0:00:14.2]} 33... fxg4+ {[%clk 0:01:21.9]} 34. fxg4 {[%clk 0:00:13.8]}
34... Rd3+ {[%clk 0:01:16.7]} 35. Kh4 {[%clk 0:00:14.1]} 35... Qf2+ {[%clk
0:01:16.3]} 36. Kh5 {[%clk 0:00:13.5]} 36... g6# {[%clk 0:01:16.6]} 0-1

[Event "Early-Titled-Tuesday-Blitz-January-16-2024"]
[Site "Chess.com"]
[Date "2024.01.16"]
[Round "4"]
[White "deepfear"]
[Black "Eesha-Karavade"]
[Result "0-1"]
[WhiteElo "1930"]
[BlackElo "2431"]
[TimeControl "180+1"]
[EndTime "8:40:12 PST"]
[Termination "Eesha-Karavade won by resignation"]

1. e4 {[%clk 0:02:57.2]} 1... e5 {[%clk 0:02:57.4]} 2. Nf3 {[%clk 0:02:55.4]}
2... Nc6 {[%clk 0:02:57.3]} 3. d4 {[%clk 0:02:50.2]} 3... exd4 {[%clk
0:02:55.7]} 4. Nxd4 {[%clk 0:02:49.4]} 4... Qf6 {[%clk 0:02:55.8]} 5. Be3 {[%clk
0:02:40.5]} 5... Bc5 {[%clk 0:02:54.9]} 6. c3 {[%clk 0:02:33.7]} 6... Nge7
{[%clk 0:02:54.5]} 7. Bc4 {[%clk 0:02:32]} 7... b6 {[%clk 0:02:53.4]} 8. O-O
{[%clk 0:02:27]} 8... Bb7 {[%clk 0:02:53.5]} 9. Na3 {[%clk 0:02:13.1]} 9...
O-O-O {[%clk 0:02:44.4]} 10. b4 {[%clk 0:02:04.3]} 10... Bxd4 {[%clk 0:02:40.7]}
11. Bxd4 {[%clk 0:02:04.4]} 11... Nxd4 {[%clk 0:02:40.3]} 12. Qxd4 {[%clk
0:01:58.5]} 12... Qxd4 {[%clk 0:02:30.5]} 13. cxd4 {[%clk 0:01:56.7]} 13... d5
{[%clk 0:02:28.6]} 14. exd5 {[%clk 0:01:42.9]} 14... Nxd5 {[%clk 0:02:27.6]} 15.
Nc2 {[%clk 0:01:36.1]} 15... Nf4 {[%clk 0:02:25.4]} 16. f3 {[%clk 0:01:29.4]}
16... Bd5 {[%clk 0:02:22.1]} 17. Ba6+ {[%clk 0:01:27.6]} 17... Kb8 {[%clk
0:02:22.1]} 18. Kf2 {[%clk 0:01:05.3]} 18... Rhe8 {[%clk 0:02:20.3]} 19. Ne3
{[%clk 0:00:55.2]} 19... Bb7 {[%clk 0:02:15.7]} 20. Bxb7 {[%clk 0:00:41.7]}
20... Kxb7 {[%clk 0:02:14.8]} 21. Rfd1 {[%clk 0:00:40.3]} 21... g6 {[%clk
0:02:07.9]} 22. Rac1 {[%clk 0:00:39.3]} 22... Nd5 {[%clk 0:02:03.4]} 23. Nxd5
{[%clk 0:00:26.9]} 23... Rxd5 {[%clk 0:02:02.4]} 24. a3 {[%clk 0:00:20.6]} 24...
a5 {[%clk 0:01:56.1]} 25. bxa5 {[%clk 0:00:18.1]} 25... Rxa5 {[%clk 0:01:56]}
26. Rc3 {[%clk 0:00:17.8]} 26... Rd8 {[%clk 0:01:54.5]} 27. Rdd3 {[%clk
0:00:13.4]} 27... Rad5 {[%clk 0:01:48.1]} 28. Ke3 {[%clk 0:00:13.2]} 28... R8d7
{[%clk 0:01:48.4]} 29. Rc4 {[%clk 0:00:11.7]} 29... c5 {[%clk 0:01:45.3]} 30. g4
{[%clk 0:00:08.6]} 30... Ka6 {[%clk 0:01:43.3]} 31. a4 {[%clk 0:00:08.7]} 31...
Ka5 {[%clk 0:01:40.6]} 32. h3 {[%clk 0:00:07]} 32... Rxd4 {[%clk 0:01:39]} 33.
Rdxd4 {[%clk 0:00:06]} 33... Rxd4 {[%clk 0:01:38.8]} 34. Rxd4 {[%clk 0:00:05.9]}
34... cxd4+ {[%clk 0:01:39.2]} 35. Kxd4 {[%clk 0:00:04.5]} 35... Kxa4 {[%clk
0:01:39.6]} 36. Ke5 {[%clk 0:00:02.2]} 36... b5 {[%clk 0:01:39.2]} 37. Kf6
{[%clk 0:00:02.5]} 37... b4 {[%clk 0:01:39.8]} 38. Kxf7 {[%clk 0:00:03.1]} 38...
b3 {[%clk 0:01:40.4]} 39. Kg7 {[%clk 0:00:03.7]} 39... b2 {[%clk 0:01:40.6]} 40.
Kxh7 {[%clk 0:00:04.3]} 40... b1=Q {[%clk 0:01:39.8]} 0-1